[Event "Summer Chess Classic-A 2022"]
[Site "Saint Louis"]
[Date "2022.06.06"]
[Round "5.4"]
[White "Hakobyan, Aram"]
[Black "Bjerre, Jonas Buhl"]
[Result "1-0"]
[ECO "A36"]
[WhiteElo "2615"]
[BlackElo "2610"]
[Annotator "TA"]
[PlyCount "59"]
[EventDate "2022.05.31"]
[EventType "tourn"]
[EventCountry "USA"]
[SourceTitle "playchess.com"]
[Source "ChessBase"]
[SourceQuality "1"]
[TimeControl "40/5400+30:1800+30"]

{[%evp 9,59,8,4,0,0,0,2,4,2,0,2,0,0,0,4,-20,23,12,22,20,24,25,25,16,63,41,79,83,68,71,88,78,128,113,176,216,297,313,355,338,353,349,518,421,2896,1420,5265,1300,2143,1849,29996,29997]} 1. c4 {[%emt 0:07:09]} c5 {[%emt 0:00:23]} 2. g3 {[%emt 0:00:38]} Nc6 {[%emt 0:00:35]} 3. Bg2 {[%emt 0:00:24]} g6 {[%emt 0:00:36]} 4. Nc3 {[%emt 0:02:00]} Bg7 {[%emt 0:00:08]} 5. d3 {[%emt 0:00:06]} d6 {[%emt 0:06:50]} 6. Qd2 {[%emt 0:00:09] A36: Symmetrical English vs ...g6: 4 Bg2 Bg7.} e6 {[%emt 0:03:25]} 7. b3 {[%emt 0:02:43]} Nge7 {[%emt 0:02:48]} 8. Bb2 {[%emt 0:00:03] The position is equal.} O-O {[%emt 0:03:13]} 9. h4 {[%emt 0:00:22][%cal Bh2h4,Bh4h5][%mdl 32]} h6 {[%emt 0:04:36]} 10. h5 {[%emt 0:01:13] Threatens to win with hxg6.} g5 {[%emt 0:01:21]} 11. f4 {[%emt 0:00:27] [#]} g4 $146 {[%emt 0:06:42]} ({Predecessor:} 11... gxf4 12. gxf4 d5 13. Nf3 d4 14. Ne4 Nf5 15. O-O-O Qe7 16. Rdg1 Kh8 17. Bh3 Rg8 {½-½ (41) Francisco,R (2281)-Ludwig,J (2360) Charlotte 2019}) 12. e4 {[%emt 0:00:22] Inhibits Nf5.} (12. Rh4 $5 {[%cal Rh4g4]}) 12... f5 {[%emt 0:02:55]} (12... d5 $5) 13. Nge2 {[%emt 0:00:14]} a6 {[%emt 0:06:14]} 14. O-O-O {[%emt 0:23:44]} Rb8 {[%emt 0:03:53]} 15. exf5 {[%emt 0:07:47]} Nxf5 {[%emt 0:06:18]} 16. Bxc6 {[%emt 0:05:51]} bxc6 {[%emt 0:00:23]} 17. Ne4 {[%emt 0:00:01]} Nd4 {[%emt 0:02:13]} 18. Nxd4 {[%emt 0:00:44]} cxd4 {[%emt 0:00:26]} 19. c5 {[%emt 0:01:15] White is more active.} dxc5 {[%emt 0:05:01]} 20. Ba3 {[%emt 0:00:42]} (20. Nxc5 $6 e5 $11) 20... Rf5 {[%emt 0:07:48] [#]} (20... Rb5 $142) 21. Rh4 $1 $16 {[%emt 0:02:37]} ({Don't do} 21. Bxc5 Rb5) ({Weaker is} 21. Nxc5 Qe7 22. Qg2 Rxc5+ 23. Kb2 Qa7 24. Bxc5 Qxc5 $17) 21... Rb5 {[%emt 0:08:09]} (21... e5 $16) 22. Rxg4 $18 {[%emt 0:02:34]} Ra5 {[%emt 0:03:18]} 23. Kb2 {[%emt 0:01:03]} Kh7 {[%emt 0:06:23] [#]} 24. Rxg7+ {[%emt 0:10:41][%mdl 512]} Kxg7 {[%emt 0:00:04]} 25. g4 {[%emt 0:00:08][%cal Bg3g4,Bg4g5,Bg5h6][%mdl 32] Dancing on a razor blade.} Rd5 {[%emt 0:00:26]} (25... Rf7 $142 26. g5 (26. Bxc5 Rxc5 27. Nxc5 Qd6 $18) 26... Kh8 27. gxh6 Rxa3) 26. g5 {[%emt 0:02:34]} Rb5 {[%emt 0:02:08]} (26... hxg5 $142 27. fxg5 c4) 27. Rg1 {[%emt 0:00:35]} (27. gxh6+ $142 Kh8 28. Qg2) 27... Rb7 {[%emt 0:02:45]} 28. Qg2 {[%emt 0:06:05]} (28. gxh6+ $142 Kh8 29. Qg2) 28... Kh8 {[%emt 0:00:46]} 29. gxh6 {[%emt 0:00:28][%cal Oe4f6] White threatens Nf6! and mate.} Rf7 {[%emt 0:02:16] [#] Inhibits Nf6.} 30. Nf6 $1 {[%emt 0:00:46][%mdl 512] Weighted Error Value: White=0.06 (flawless) /Black=0.64} 1-0

[Event "Summer Chess Classic-A 2022"]
[Site "Saint Louis"]
[Date "2022.06.07"]
[Round "6.1"]
[White "Gledura, Benjamin"]
[Black "Hakobyan, Aram"]
[Result "1/2-1/2"]
[ECO "D79"]
[WhiteElo "2644"]
[BlackElo "2615"]
[Annotator "TA"]
[PlyCount "23"]
[EventDate "2022.05.31"]
[EventType "tourn"]
[EventCountry "USA"]
[SourceTitle "playchess.com"]
[Source "ChessBase"]
[SourceQuality "1"]
[TimeControl "40/5400+30:1800+30"]

{[%evp 22,23,3,0]} 1. d4 {[%emt 0:00:03]} Nf6 {[%emt 0:00:13]} 2. c4 {[%emt 0:00:10]} g6 {[%emt 0:00:25]} 3. g3 {[%emt 0:00:15]} c6 {[%emt 0:00:25]} 4. Bg2 {[%emt 0:00:20]} d5 {[%emt 0:00:13]} 5. cxd5 {[%emt 0:01:36]} cxd5 {[%emt 0:00:26]} 6. Nf3 {[%emt 0:00:24]} Bg7 {[%emt 0:00:32]} 7. O-O {[%emt 0:00:48]} O-O {[%emt 0:01:00]} 8. Ne5 {[%emt 0:01:26] [#]} Ng4 $146 {[%emt 0:01:22]} ({Predecessor:} 8... Ne4 9. Nd2 Nc6 10. Nxe4 dxe4 11. Nxc6 bxc6 12. Bxe4 Bh3 13. Re1 {½-½ (13) Matlakov,M (2674)-Giri,A (2773) Chess.com INT 2022}) 9. Nf3 {[%emt 0:05:02]} Nf6 {[%emt 0:00:43]} 10. Ne5 {[%emt 0:00:36]} Ng4 {[%emt 0:00:21] 10...Nc6 is setting a new trend.} 11. Nf3 {[%emt 0:00:18]} Nf6 {[%emt 0:00:09]} 12. Ne5 {[%emt 0:00:14]} 1/2-1/2

[Event "Summer Chess Classic-A 2022"]
[Site "Saint Louis"]
[Date "2022.06.07"]
[Round "6.2"]
[White "Oparin, Grigoriy"]
[Black "Mishra, Abhimanyu"]
[Result "1/2-1/2"]
[ECO "D43"]
[WhiteElo "2685"]
[BlackElo "2535"]
[Annotator "TA"]
[PlyCount "82"]
[EventDate "2022.05.31"]
[EventType "tourn"]
[EventCountry "USA"]
[SourceTitle "playchess.com"]
[Source "ChessBase"]
[SourceQuality "1"]
[TimeControl "40/5400+30:1800+30"]

{[%evp 13,82,-1,8,-49,0,0,0,0,0,0,0,-3,0,-10,0,0,0,0,0,0,0,-8,-10,-5,-6,-18,-8,-21,0,-5,-3,-21,0,0,0,0,0,0,0,0,0,0,0,0,0,0,0,0,0,0,0,0,0,0,0,0,0,0,0,0,0,0,0,0,0,0,0,0,0,0,5]} 1. c4 {[%emt 0:00:03]} c6 {[%emt 0:00:07]} 2. d4 {[%emt 0:00:07]} d5 {[%emt 0:00:06]} 3. Nf3 {[%emt 0:00:09]} Nf6 {[%emt 0:00:12]} 4. Nc3 {[%emt 0:00:14]} e6 {[%emt 0:00:25]} 5. Qd3 {[%emt 0:00:17]} dxc4 {[%emt 0:01:03]} 6. Qxc4 {[%emt 0:00:06]} b5 {[%emt 0:00:21]} 7. Qd3 {[%emt 0:00:05]} a6 {[%emt 0:00:52]} 8. g4 $1 {[%emt 0:00:13][%mdl 4] is more profitable than 8.e4 at the moment. D43: Semi-Slav: 5 Bg5 h6.} (8. e4 $11) 8... c5 {[%emt 0:00:46]} (8... Nxg4 $15 9. Bg5 Nf6) 9. g5 $11 {[%emt 0:00:20] [#] The position is equal.} cxd4 $5 $146 {[%emt 0:02:15][%mdl 8] An interesting novelty.} ({Predecessor:} 9... c4 10. Qe3 Nd5 11. Nxd5 Qxd5 12. Bg2 Bb4+ 13. Kf1 Bb7 14. h4 Qf5 15. a3 Bd6 {½-½ (36) Li,D (2579)-Ding,L (2799) Hangzhou 2022}) 10. Qxd4 {[%emt 0:00:54]} Qxd4 {[%emt 0:02:39]} 11. Nxd4 {[%emt 0:00:06]} Bb7 {[%emt 0:01:17]} 12. Rg1 {[%emt 0:00:11]} Nfd7 {[%emt 0:00:27]} 13. Nb3 {[%emt 0:01:22]} Bb4 {[%emt 0:10:02]} 14. Bd2 {[%emt 0:01:27]} O-O {[%emt 0:07:48]} 15. Rd1 {[%emt 0:42:49]} Nc5 {[%emt 0:12:44]} 16. Rg4 {[%emt 0:08:51]} Nxb3 {[%emt 0:06:19]} 17. axb3 {[%emt 0:00:04]} Nc6 {[%emt 0:04:20]} 18. Bg2 {[%emt 0:01:21] [#] aiming for Bxc6.} Be7 {[%emt 0:05:58]} 19. Ne4 {[%emt 0:04:21][%cal Oe4f6,Bc3e4,Be4d2,Bd2f3,Bf3d4][%mdl 32]} Rfd8 {[%emt 0:04:41]} 20. Rg3 {[%emt 0:00:45][%cal Oe4f6]} Rab8 {[%emt 0:05:10]} 21. Rc1 {[%emt 0:02:43]} Bb4 {[%emt 0:07:13]} 22. f4 {[%emt 0:17:42]} (22. Bc3 {seems wilder.} Ba8 23. Nf6+ gxf6 24. gxf6+ Kh8 25. Bxc6 Bd6 26. Ba5) 22... Bxd2+ {[%emt 0:05:53]} 23. Nxd2 {[%emt 0:00:06]} Nb4 {[%emt 0:00:16]} 24. Bxb7 {[%emt 0:00:18]} Rxb7 {[%emt 0:00:02]} 25. Kf2 {[%emt 0:00:49]} Kf8 {[%emt 0:06:20]} 26. Nf3 {[%emt 0:00:34]} Nd5 {[%emt 0:02:20]} 27. e3 {[%emt 0:01:23]} Rc7 {[%emt 0:01:23]} 28. Rxc7 {[%emt 0:00:35]} Nxc7 {[%emt 0:00:01][%mdl 4096] Endgame KRN-KRN} 29. Ke2 {[%emt 0:00:56] Inhibits Rd3.} Nd5 {[%emt 0:01:37]} 30. Rg1 {[%emt 0:01:37]} Rc8 {[%emt 0:01:15]} 31. Nd4 {[%emt 0:00:16] Against Rc2+} Ke7 {[%emt 0:02:53]} 32. h4 {[%emt 0:00:21]} Nb4 {[%emt 0:01:14]} 33. h5 {[%emt 0:01:11]} Nc6 {[%emt 0:01:56]} 34. Kd3 {[%emt 0:01:37]} Nxd4 {[%emt 0:01:18]} 35. Kxd4 {[%emt 0:00:33] KR-KR} h6 {[%emt 0:02:36]} 36. Ra1 {[%emt 0:07:13]} Rc6 {[%emt 0:00:28]} 37. e4 {[%emt 0:00:31]} Kd7 {[%emt 0:01:23]} 38. e5 {[%emt 0:01:24]} Ke7 {[%emt 0:00:43]} 39. Kd3 {[%emt 0:00:43]} Ke8 {[%emt 0:01:57]} 40. Rg1 {[%emt 0:04:12]} Kf8 {[%emt 0:00:48]} 41. Ra1 {[%emt 0:09:37]} Ke7 {[%emt 0:04:40] A balanced but interesting game.  Weighted Error Value: White=0.05 (flawless) /Black=0.04 (flawless)} 1/2-1/2

[Event "Summer Chess Classic-A 2022"]
[Site "Saint Louis"]
[Date "2022.06.07"]
[Round "6.3"]
[White "Yu, Yangyi"]
[Black "Sevian, Samuel"]
[Result "1/2-1/2"]
[ECO "C83"]
[WhiteElo "2710"]
[BlackElo "2703"]
[Annotator "TA"]
[PlyCount "80"]
[EventDate "2022.05.31"]
[EventType "tourn"]
[EventCountry "USA"]
[SourceTitle "playchess.com"]
[Source "ChessBase"]
[SourceQuality "1"]
[TimeControl "40/5400+30:1800+30"]

{[%evp 21,80,0,0,0,0,0,0,0,0,0,0,-14,-8,-10,0,0,0,-14,0,0,0,0,0,-6,0,0,0,-10,0,0,0,0,0,0,9,2,2,2,2,0,0,0,0,0,0,0,0,0,0,0,0,0,0,0,0,0,0,0,0,0,0]} 1. e4 {[%emt 0:00:05]} e5 {[%emt 0:01:25]} 2. Nf3 {[%emt 0:00:11]} Nc6 {[%emt 0:00:11]} 3. Bb5 {[%emt 0:00:10][%cal Bf1b5,Bb5a4,Ba4b3][%mdl 32]} a6 {[%emt 0:00:12]} 4. Ba4 {[%emt 0:02:05]} Nf6 {[%emt 0:00:13]} 5. O-O {[%emt 0:00:31]} Nxe4 {[%emt 0:00:25]} 6. d4 {[%emt 0:00:24]} b5 {[%emt 0:00:17]} 7. Bb3 {[%emt 0:00:08]} d5 {[%emt 0:00:10]} 8. dxe5 {[%emt 0:00:15]} Be6 {[%emt 0:00:11]} 9. c3 {[%emt 0:01:36]} Be7 {[%emt 0:01:05]} 10. Nbd2 {[%emt 0:06:04]} O-O {[%emt 0:01:04]} 11. Re1 {[%emt 0:05:42]} Nc5 {[%emt 0:01:34] The position is equal.} 12. Nd4 {[%emt 0:02:14] C83: Open Ruy Lopez: 9 c3 Be7.} Nxd4 {[%emt 0:01:00]} (12... Nxb3 $2 13. Nxc6 Qe8 14. Nxe7+ Qxe7 15. Nxb3 $18) 13. cxd4 {[%emt 0:00:08]} Nd3 {[%emt 0:00:08]} 14. Re3 {[%emt 0:00:08]} Nxc1 {[%emt 0:00:09]} 15. Rxc1 {[%emt 0:00:08]} a5 {[%emt 0:00:07][%cal Ba6a5,Ba5a4,Ba4a3][%mdl 32]} 16. Nf3 {[%emt 0:03:49] [#]} a4 $146 {[%emt 0:00:47]} ({Predecessor:} 16... Rc8 17. Rec3 a4 18. Bc2 g6 19. Bd3 b4 20. Rc6 Bd7 21. R6c2 b3 22. axb3 axb3 {½-½ (48) McShane,L (2713)-Erdos,V (2637) Germany 2012}) 17. Bc2 {[%emt 0:00:09]} a3 {[%emt 0:00:24]} 18. b3 {[%emt 0:04:43]} Rc8 {[%emt 0:00:35]} 19. Bd3 {[%emt 0:03:32]} c5 {[%emt 0:10:56]} 20. dxc5 {[%emt 0:07:51]} Bxc5 {[%emt 0:13:56]} 21. Re2 {[%emt 0:00:36]} Qb6 {[%emt 0:01:04]} 22. Rec2 {[%emt 0:01:46]} g6 {[%emt 0:10:48]} 23. Qd2 {[%emt 0:02:48]} Be7 {[%emt 0:01:41]} 24. Qe3 {[%emt 0:10:48]} Qb7 {[%emt 0:21:03]} 25. Nd4 {[%emt 0:04:49]} Rxc2 {[%emt 0:00:14]} 26. Rxc2 {[%emt 0:00:08]} b4 {[%emt 0:07:44]} 27. h4 {[%emt 0:25:21]} Rc8 {[%emt 0:04:53]} 28. Nxe6 {[%emt 0:00:30]} Rxc2 {[%emt 0:00:29]} 29. Bxc2 {[%emt 0:00:06] [#] Black must now prevent Nf4.} fxe6 $11 {[%emt 0:00:04][%mdl 4096] Endgame KQB-KQB} 30. h5 {[%emt 0:01:21]} Qc7 {[%emt 0:00:56]} 31. Bd3 {[%emt 0:01:09]} Qc3 {[%emt 0:04:12]} ({Much less strong is} 31... gxh5 32. Qh6 Bc5 33. Qxe6+ Qf7 {[#]} 34. Bxh7+ $1 (34. Qc8+ Qf8 $16) 34... Kg7 35. Qxf7+ Kxf7 36. Kf1 $18) 32. hxg6 {[%emt 0:00:22]} hxg6 {[%emt 0:00:12]} 33. Bxg6 {[%emt 0:03:57] Qf4 would kill now.} Qxe3 {[%emt 0:00:16]} (33... Qa1+ $2 34. Kh2 Kg7 35. Be8 $18 (35. Qg3 Qc3 $18)) 34. fxe3 {[%emt 0:00:09] KB-KB} Bd8 {[%emt 0:00:29]} 35. Bd3 {[%emt 0:00:36]} Bc7 {[%emt 0:00:13]} 36. e4 {[%emt 0:00:11]} dxe4 {[%emt 0:00:05]} 37. Bxe4 {[%emt 0:00:07]} Bxe5 {[%emt 0:00:03]} 38. Kf2 {[%emt 0:00:12]} Kg7 {[%emt 0:00:05]} 39. Kf3 {[%emt 0:00:06]} Kf6 {[%emt 0:00:06]} 40. Bd3 {[%emt 0:00:05]} Bc3 {[%emt 0:00:07] A balanced but interesting game.  Weighted Error Value: White=0.02 (flawless) /Black=0.02 (flawless)} 1/2-1/2

[Event "Summer Chess Classic-A 2022"]
[Site "Saint Louis"]
[Date "2022.06.07"]
[Round "6.4"]
[White "Smirin, Ilia"]
[Black "Theodorou, Nikolas"]
[Result "1/2-1/2"]
[ECO "E94"]
[WhiteElo "2599"]
[BlackElo "2567"]
[Annotator "TA"]
[PlyCount "71"]
[EventDate "2022.05.31"]
[EventType "tourn"]
[EventCountry "USA"]
[SourceTitle "playchess.com"]
[Source "ChessBase"]
[SourceQuality "1"]
[TimeControl "40/5400+30:1800+30"]

{[%evp 12,71,41,32,40,40,44,33,40,22,40,32,20,23,18,8,12,14,17,0,10,0,0,0,0,0,0,0,0,0,7,3,2,1,3,2,8,0,2,0,0,0,0,0,0,0,0,0,0,0,0,0,0,0,0,0,0,0,0,0,0,0]} 1. d4 {[%emt 0:01:15]} Nf6 {[%emt 0:00:11]} 2. c4 {[%emt 0:00:24]} g6 {[%emt 0:00:33]} 3. Nc3 {[%emt 0:00:22]} Bg7 {[%emt 0:00:05]} 4. e4 {[%emt 0:00:23]} d6 {[%emt 0:00:13]} 5. Be2 {[%emt 0:00:27]} O-O {[%emt 0:00:37]} 6. Nf3 {[%emt 0:00:24]} e5 {[%emt 0:04:03]} 7. O-O {[%emt 0:00:57]} h6 {[%emt 0:02:26] E94: King's Indian: Classical: 6 Be2 e5 7 0-0: Various Black 7th moves.} 8. dxe5 {[%emt 0:02:50]} dxe5 {[%emt 0:00:06]} 9. Be3 {[%emt 0:00:23]} Nc6 {[%emt 0:00:13] White is slightly better.} 10. h3 {[%emt 0:01:03]} Re8 {[%emt 0:00:14]} 11. c5 {[%emt 0:06:09] [#]} Qxd1 $146 {[%emt 0:03:24]} ({Predecessor:} 11... Nd7 12. Bb5 a6 13. Bxc6 bxc6 14. Qa4 Qf6 15. Nd2 Nf8 16. Nc4 Bd7 17. Rad1 Reb8 18. Ne2 {½-½ (32) Babula,V (2569)-Dziuba,M (2564) Lublin 2009}) 12. Rfxd1 {[%emt 0:10:21]} Be6 {[%emt 0:00:15]} 13. Bb5 {[%emt 0:01:24] The position is equal.} Nd7 {[%emt 0:00:33]} 14. Nd5 {[%emt 0:11:17]} Rac8 {[%emt 0:00:24]} 15. g4 {[%emt 0:01:25]} Nd4 {[%emt 0:04:41]} 16. Nxd4 {[%emt 0:09:22]} (16. Bxd4 {keeps more tension.} c6 17. Be3 cxb5 18. b4) 16... exd4 {[%emt 0:00:58]} 17. Bxd7 {[%emt 0:00:31]} Bxd7 {[%emt 0:00:21]} 18. Bxd4 {[%emt 0:00:13]} Rxe4 {[%emt 0:00:48]} 19. Bf6 {[%emt 0:06:16]} Ba4 {[%emt 0:02:23]} 20. Rd2 {[%emt 0:00:59]} Kf8 {[%emt 0:11:48] Against Ne7} 21. Nc3 {[%emt 0:05:10]} Rc4 {[%emt 0:00:34]} 22. Bxg7+ {[%emt 0:00:09]} Kxg7 {[%emt 0:00:02]} 23. Nxa4 {[%emt 0:00:16]} Rxa4 $11 {[%emt 0:00:03][%mdl 4096] Endgame KRR-KRR} 24. b3 {[%emt 0:00:08]} Re4 {[%emt 0:00:20]} 25. c6 {[%emt 0:03:40]} bxc6 {[%emt 0:00:47]} 26. Rc1 {[%emt 0:02:10]} a5 $1 {[%emt 0:00:14]} 27. Rxc6 {[%emt 0:00:40]} a4 {[%emt 0:00:09]} 28. Rd7 {[%emt 0:02:10]} axb3 {[%emt 0:00:17]} 29. axb3 {[%emt 0:00:04]} Rb4 {[%emt 0:00:09]} 30. Rcxc7 {[%emt 0:00:08]} Rxc7 {[%emt 0:00:05]} 31. Rxc7 {[%emt 0:00:04]} Rxb3 {[%emt 0:00:04] KR-KR} 32. Kg2 {[%emt 0:00:05]} Ra3 {[%emt 0:00:06]} 33. Rb7 {[%emt 0:00:09]} Rc3 {[%emt 0:00:07]} 34. Rd7 {[%emt 0:00:07]} Ra3 {[%emt 0:00:04]} 35. Rb7 {[%emt 0:00:04]} Rc3 {[%emt 0:00:05]} 36. Rd7 {[%emt 0:00:07] Weighted Error Value: White=0.03 (flawless) /Black=0.02 (flawless)} 1/2-1/2

[Event "Summer Chess Classic-A 2022"]
[Site "Saint Louis"]
[Date "2022.06.08"]
[Round "7.1"]
[White "Sevian, Samuel"]
[Black "Smirin, Ilia"]
[Result "0-1"]
[ECO "B43"]
[WhiteElo "2703"]
[BlackElo "2599"]
[Annotator "TA"]
[PlyCount "92"]
[EventDate "2022.05.31"]
[EventType "tourn"]
[EventCountry "USA"]
[SourceTitle "playchess.com"]
[Source "ChessBase"]
[SourceQuality "1"]
[TimeControl "40/5400+30:1800+30"]

{[%evp 15,92,31,28,29,35,2,8,0,19,16,20,0,0,-55,-20,-25,-8,-10,0,-37,-40,-53,-13,-16,-7,-7,0,-18,0,-39,-50,-44,-47,-77,-24,-27,0,0,7,0,6,6,7,0,12,0,0,-43,-56,-281,-274,-265,-70,-43,-54,-62,-78,-62,-53,-263,-238,-483,-444,-688,-646,-781,-759,-819,-830,-786,-564,-782,-771,-979,-844,-29972,-29973,-29975,-29975]} 1. e4 {[%emt 0:03:08]} c5 {[%emt 0:00:11]} 2. Nf3 {[%emt 0:00:11]} e6 {[%emt 0:00:14]} 3. d4 {[%emt 0:00:10]} cxd4 {[%emt 0:00:09]} 4. Nxd4 {[%emt 0:00:04]} a6 {[%emt 0:00:21]} 5. Nc3 {[%emt 0:00:07]} b5 {[%emt 0:00:19]} 6. Bd3 {[%emt 0:00:16]} Bb7 {[%emt 0:00:06]} 7. O-O {[%emt 0:00:28]} Nc6 {[%emt 0:00:14]} 8. Nxc6 {[%emt 0:00:40]} Bxc6 {[%emt 0:00:09]} 9. Re1 {[%emt 0:00:08] B43: Sicilian: Kan Variation: 5 Nc3.} Ne7 $1 {[%emt 0:00:38][%cal Bg8e7,Be7g6,Bg6e5,Be5d3][%mdl 4] 9...Ne7 is the modern continuation.} 10. Qh5 {[%emt 0:06:49]} Ng6 {[%emt 0:01:40]} 11. a4 {[%emt 0:11:35][%cal Ra4b5] The position is equal.} bxa4 {[%emt 0:07:25]} 12. Nxa4 {[%emt 0:10:05]} Bd6 {[%emt 0:03:23]} 13. Nc5 {[%emt 0:21:47] [#]} O-O $146 {[%emt 0:14:18]} ({Predecessor:} 13... a5 14. Nb3 Be5 15. c3 O-O 16. Nd4 a4 17. Nxc6 dxc6 18. Bc2 a3 19. Rxa3 Rxa3 20. bxa3 Bxc3 {½-½ (46) Mosadeghpour,M (2489)-Kovalenko,I (2668) Sousse 2021}) 14. Bd2 {[%emt 0:04:28]} (14. Be3 $11) 14... Ne5 {[%emt 0:03:09] And now ...g6 would win.} (14... f5 $5 {[%cal Rd6c5]} 15. Ra5 (15. exf5 Bxc5 16. fxg6 Rxf2 $17) (15. Nxa6 $2 fxe4 16. Bc4 Qb6 $19) 15... Nf4 $17) 15. Bc3 {[%emt 0:02:25]} (15. Bxa6 $2 Bxc5 16. Qxe5 Qb6 $19) ({Don't blunder} 15. Rxa6 $2 g6 16. Rxa8 Bxa8 $19) 15... Nxd3 {[%emt 0:07:17]} 16. Nxd3 {[%emt 0:01:59]} f5 {[%emt 0:00:55]} 17. f3 {[%emt 0:00:18]} (17. e5 $5 {[%cal Re5d6]} Be7 18. Qh3 $11) 17... a5 {[%emt 0:07:06]} 18. Kh1 {[%emt 0:01:40]} Rf7 {[%emt 0:02:55]} 19. Be5 {[%emt 0:02:06]} Bf8 {[%emt 0:01:44]} 20. Bc3 {[%emt 0:01:43]} Bd6 {[%emt 0:01:52]} 21. Be5 {[%emt 0:00:19]} Bf8 {[%emt 0:00:55]} 22. Bg3 {[%emt 0:03:08]} (22. Bc3 $5 {[%cal Rd3e5]}) 22... fxe4 {[%emt 0:05:16]} 23. fxe4 {[%emt 0:00:37]} d6 {[%emt 0:00:05] Prevents Ne5.} 24. e5 {[%emt 0:01:59]} Rf5 {[%emt 0:06:43]} (24... d5 $17) 25. Qg4 {[%emt 0:00:18]} dxe5 {[%emt 0:12:44]} 26. Nxe5 {[%emt 0:07:08]} Bb7 {[%emt 0:00:15]} 27. Rad1 {[%emt 0:02:23]} Qb6 {[%emt 0:04:16]} 28. Qe2 {[%emt 0:02:50]} Re8 {[%emt 0:03:26]} (28... Qxb2 $2 29. Rb1 Qa2 30. Rxb7 $18) 29. c3 {[%emt 0:00:29]} Bd5 {[%emt 0:06:34]} 30. Ng4 {[%emt 0:01:24] Ne3 is the strong threat.} Bc5 {[%emt 0:01:23]} 31. c4 {[%emt 0:04:25]} Ba8 {[%emt 0:01:56] Strongly threatening ...Ref8. This bishop pair is nice.} 32. Rd7 $2 {[%emt 0:05:52]} (32. Ne5 $15) 32... h5 $19 {[%emt 0:01:28]} 33. Ne5 {[%emt 0:01:39][%cal Od7f7]} Bf2 $2 {[%emt 0:01:04]} (33... Ref8 $1 $19 34. b4 Rf2 $1 {[%mdl 512]} 35. Bxf2 (35. bxc5 Rxe2 36. h4 Rxe1+ 37. Bxe1 Qxc5 38. Nf3 Bxf3 39. gxf3 Qe3 40. Kh2 Qxe1 41. Kg2 Qe2+ 42. Kg1 Rxf3 43. Rd8+ Kh7) 35... Rxf2) 34. Rf1 $15 {[%emt 0:01:08] [#] Inhibits Rf2.} Qe3 {[%emt 0:02:12]} 35. Qxe3 {[%emt 0:01:12]} (35. Rd2 Bxg3) 35... Bxe3 {[%emt 0:00:06][%cal Rf5f1] The board is on fire.} 36. Rxf5 {[%emt 0:01:14]} exf5 {[%emt 0:00:05]} 37. Nf3 $2 {[%emt 0:00:03] [#]} (37. h4 $1 $15) 37... g5 $1 $19 {[%emt 0:00:34][%cal Bg7g5,Bg5g4][%mdl 32]} 38. Bc7 $2 {[%emt 0:01:27]} (38. Nd4 f4 39. Nf5) 38... g4 {[%emt 0:01:45]} 39. Ng1 {[%emt 0:00:21]} (39. Ne1 $142 f4 40. h3) 39... f4 {[%emt 0:00:53] Hoping for ...f3.} 40. h3 {[%emt 0:01:54]} f3 {[%emt 0:00:54]} 41. gxf3 {[%emt 0:01:58]} gxf3 {[%emt 0:00:22]} 42. Nxf3 {[%emt 0:00:05]} Bxf3+ {[%emt 0:02:27]} 43. Kh2 {[%emt 0:00:07]} Bc6 {[%emt 0:02:51]} 44. Rd1 {[%emt 0:00:23]} a4 {[%emt 0:00:39] aiming for ...Re4.} 45. Kg3 {[%emt 0:00:17]} Re7 {[%emt 0:00:39]} 46. Rd8+ {[%emt 0:03:05]} Kh7 {[%emt 0:00:12] Weighted Error Value: White=0.76/Black=0.12 (very precise)} 0-1